[Event "*** Titled Tuesday Blitz"]
[Site "Chess.com"]
[Date "2021.02.09"]
[Round "9"]
[White "Angry_Twin"]
[Black "RobertoJBM"]
[Result "1/2-1/2"]
[WhiteElo "2836"]
[BlackElo "2728"]
[TimeControl "180+1"]
[EndTime "11:45:10 PST"]
[Termination "Game drawn by repetition"]

1. e4 {[%clk 0:01:54.1]} 1... c6 {[%clk 0:02:58.7]} 2. d4 {[%clk 0:01:53.9]}
2... d5 {[%clk 0:02:59.6]} 3. e5 {[%clk 0:01:54.4]} 3... Bf5 {[%clk 0:02:59]} 4.
Nf3 {[%clk 0:01:52.3]} 4... e6 {[%clk 0:02:58]} 5. Be2 {[%clk 0:01:52.8]} 5...
Nd7 {[%clk 0:02:56.7]} 6. O-O {[%clk 0:01:53.2]} 6... h6 {[%clk 0:02:54.6]} 7.
Nbd2 {[%clk 0:01:53.5]} 7... Ne7 {[%clk 0:02:54.1]} 8. Nb3 {[%clk 0:01:53.9]}
8... Bh7 {[%clk 0:02:52.1]} 9. Bd2 {[%clk 0:01:49.3]} 9... Ng6 {[%clk
0:02:52.3]} 10. Rc1 {[%clk 0:01:49]} 10... Be7 {[%clk 0:02:48.5]} 11. c4 {[%clk
0:01:48.8]} 11... dxc4 {[%clk 0:02:48.2]} 12. Bxc4 {[%clk 0:01:49.7]} 12... Nb6
{[%clk 0:02:46.3]} 13. Bd3 {[%clk 0:01:49.7]} 13... O-O {[%clk 0:02:45.4]} 14.
g3 {[%clk 0:01:49.3]} 14... Re8 {[%clk 0:02:45.4]} 15. Qe2 {[%clk 0:01:49.1]}
15... Nd5 {[%clk 0:02:44.2]} 16. Na5 {[%clk 0:01:47.3]} 16... Qd7 {[%clk
0:02:39.6]} 17. h4 {[%clk 0:01:41.8]} 17... Rac8 {[%clk 0:02:33.1]} 18. Rfd1
{[%clk 0:01:39.2]} 18... b6 {[%clk 0:02:31.4]} 19. Nc4 {[%clk 0:01:38.9]} 19...
Red8 {[%clk 0:02:30.8]} 20. Be1 {[%clk 0:01:33.1]} 20... c5 {[%clk 0:02:25.5]}
21. dxc5 {[%clk 0:01:30.5]} 21... Bxc5 {[%clk 0:02:26.4]} 22. h5 {[%clk
0:01:24.9]} 22... Nf8 {[%clk 0:02:24.1]} 23. Bxh7+ {[%clk 0:01:01.1]} 23... Nxh7
{[%clk 0:02:25]} 24. b3 {[%clk 0:00:57.2]} 24... Qe7 {[%clk 0:02:11.8]} 25. Bd2
{[%clk 0:00:54.9]} 25... Rc7 {[%clk 0:02:05.8]} 26. Kg2 {[%clk 0:00:39.7]} 26...
Rcd7 {[%clk 0:02:02.5]} 27. Rh1 {[%clk 0:00:32.5]} 27... Nb4 {[%clk 0:01:45.7]}
28. Bxb4 {[%clk 0:00:31.2]} 28... Bxb4 {[%clk 0:01:45.3]} 29. Rh4 {[%clk
0:00:31.8]} 29... Bc5 {[%clk 0:01:34.5]} 30. Rg4 {[%clk 0:00:31.6]} 30... Kh8
{[%clk 0:01:25.1]} 31. Ncd2 {[%clk 0:00:29.5]} 31... Ng5 {[%clk 0:01:15.4]} 32.
Ne4 {[%clk 0:00:29.6]} 32... Nxe4 {[%clk 0:01:15]} 33. Qxe4 {[%clk 0:00:29.2]}
33... Rd5 {[%clk 0:01:08.9]} 34. b4 {[%clk 0:00:24]} 34... Bd4 {[%clk
0:01:08.5]} 35. Nxd4 {[%clk 0:00:24.2]} 35... Rxd4 {[%clk 0:01:08.9]} 36. Qxd4
{[%clk 0:00:25.1]} 36... Rxd4 {[%clk 0:01:09.3]} 37. Rxd4 {[%clk 0:00:26]} 37...
Qg5 {[%clk 0:01:09.6]} 38. Rc8+ {[%clk 0:00:25]} 38... Kh7 {[%clk 0:01:10]} 39.
Rf4 {[%clk 0:00:24.6]} 39... Qxh5 {[%clk 0:01:09.5]} 40. Rc7 {[%clk 0:00:24.3]}
40... Qxe5 {[%clk 0:01:07.8]} 41. Rfxf7 {[%clk 0:00:24.3]} 41... a5 {[%clk
0:01:06]} 42. bxa5 {[%clk 0:00:24.6]} 42... bxa5 {[%clk 0:01:06.9]} 43. g4
{[%clk 0:00:19.9]} 43... Kg6 {[%clk 0:01:04.1]} 44. f3 {[%clk 0:00:18.5]} 44...
Qe2+ {[%clk 0:01:02]} 45. Kg3 {[%clk 0:00:17]} 45... Qe1+ {[%clk 0:01:02.3]} 46.
Kg2 {[%clk 0:00:16.4]} 46... Qe2+ {[%clk 0:01:02.6]} 47. Kh3 {[%clk 0:00:16.6]}
47... Qf1+ {[%clk 0:01:01.4]} 48. Kg3 {[%clk 0:00:16.8]} 48... Qg1+ {[%clk
0:01:01.4]} 49. Kh3 {[%clk 0:00:17]} 49... Qh1+ {[%clk 0:01:01.7]} 50. Kg3
{[%clk 0:00:16.5]} 50... Qg1+ {[%clk 0:01:01.8]} 51. Kf4 {[%clk 0:00:12.8]}
51... Qd4+ {[%clk 0:00:49]} 52. Kg3 {[%clk 0:00:12.8]} 52... Qg1+ {[%clk
0:00:21.1]} 1/2-1/2

[Event "*** Titled Tuesday Blitz"]
[Site "Chess.com"]
[Date "2021.02.09"]
[Round "9"]
[White "Grammnik"]
[Black "ARTHURMOTIVATOR"]
[Result "0-1"]
[WhiteElo "2401"]
[BlackElo "2311"]
[TimeControl "180+1"]
[EndTime "11:45:13 PST"]
[Termination "ARTHURMOTIVATOR won on time"]

1. d4 {[%clk 0:03:00.9]} 1... Nf6 {[%clk 0:02:57]} 2. Nf3 {[%clk 0:02:59.5]}
2... g6 {[%clk 0:02:53.9]} 3. c4 {[%clk 0:02:58.9]} 3... Bg7 {[%clk 0:02:53.7]}
4. Nc3 {[%clk 0:02:58.9]} 4... O-O {[%clk 0:02:53.8]} 5. e4 {[%clk 0:02:58.5]}
5... d6 {[%clk 0:02:53.3]} 6. Be2 {[%clk 0:02:58]} 6... e5 {[%clk 0:02:51.4]} 7.
O-O {[%clk 0:02:58.4]} 7... Nbd7 {[%clk 0:02:51.2]} 8. Bg5 {[%clk 0:02:52.4]}
8... h6 {[%clk 0:02:50.1]} 9. Bh4 {[%clk 0:02:52.1]} 9... g5 {[%clk 0:02:39]}
10. Bg3 {[%clk 0:02:51.8]} 10... Nh5 {[%clk 0:02:38.4]} 11. d5 {[%clk
0:02:51.4]} 11... Nf4 {[%clk 0:02:33.8]} 12. Nd2 {[%clk 0:02:50]} 12... Nf6
{[%clk 0:02:30.9]} 13. f3 {[%clk 0:02:43.1]} 13... N6h5 {[%clk 0:02:27.5]} 14.
Bf2 {[%clk 0:02:43.1]} 14... a6 {[%clk 0:02:20]} 15. c5 {[%clk 0:02:41.9]} 15...
Qf6 {[%clk 0:02:14.9]} 16. cxd6 {[%clk 0:02:37.9]} 16... cxd6 {[%clk 0:02:14.6]}
17. Nc4 {[%clk 0:02:37.8]} 17... Qg6 {[%clk 0:01:59.3]} 18. Nb6 {[%clk
0:02:36.7]} 18... Rb8 {[%clk 0:01:34.7]} 19. Nxc8 {[%clk 0:01:48.1]} 19... Rbxc8
{[%clk 0:01:33.9]} 20. g3 {[%clk 0:01:48]} 20... Nh3+ {[%clk 0:01:28.9]} 21. Kg2
{[%clk 0:01:45.6]} 21... Nxf2 {[%clk 0:01:27.3]} 22. Rxf2 {[%clk 0:01:44.7]}
22... Bf6 {[%clk 0:01:23.7]} 23. Kh1 {[%clk 0:01:39.4]} 23... Bd8 {[%clk
0:01:23.2]} 24. Qb3 {[%clk 0:01:33.2]} 24... b5 {[%clk 0:01:22]} 25. a4 {[%clk
0:01:26.1]} 25... Bb6 {[%clk 0:01:21.2]} 26. Rg2 {[%clk 0:01:25.9]} 26... f5
{[%clk 0:01:12.9]} 27. axb5 {[%clk 0:01:24.1]} 27... axb5 {[%clk 0:01:13.8]} 28.
Qxb5 {[%clk 0:01:03.2]} 28... Bc5 {[%clk 0:01:12.6]} 29. Qd7 {[%clk 0:00:55]}
29... Rce8 {[%clk 0:00:51.3]} 30. Bd3 {[%clk 0:00:50.8]} 30... f4 {[%clk
0:00:46.4]} 31. g4 {[%clk 0:00:49]} 31... Nf6 {[%clk 0:00:45]} 32. Qb5 {[%clk
0:00:43.4]} 32... h5 {[%clk 0:00:43.2]} 33. gxh5 {[%clk 0:00:40.5]} 33... Nxh5
{[%clk 0:00:42.5]} 34. Ra6 {[%clk 0:00:29.7]} 34... Rf6 {[%clk 0:00:31.3]} 35.
Rxg5 {[%clk 0:00:23.6]} 35... Qxg5 {[%clk 0:00:22.7]} 36. Qxe8+ {[%clk
0:00:23.4]} 36... Rf8 {[%clk 0:00:20.6]} 37. Qxf8+ {[%clk 0:00:09.4]} 37... Kxf8
{[%clk 0:00:19.9]} 38. Ne2 {[%clk 0:00:10.3]} 38... Qh4 {[%clk 0:00:18.8]} 39.
Kg2 {[%clk 0:00:07.2]} 39... Qf2+ {[%clk 0:00:18.1]} 40. Kh3 {[%clk 0:00:06.6]}
40... Qxf3+ {[%clk 0:00:18.3]} 41. Kh4 {[%clk 0:00:06.9]} 41... Nf6 {[%clk
0:00:17]} 42. Kg5 {[%clk 0:00:06.6]} 42... Nh7+ {[%clk 0:00:14.3]} 43. Kg6
{[%clk 0:00:06.3]} 43... Qg2+ {[%clk 0:00:11.9]} 44. Kf5 {[%clk 0:00:03.2]}
44... f3 {[%clk 0:00:11.6]} 0-1

[Event "*** Titled Tuesday Blitz"]
[Site "Chess.com"]
[Date "2021.02.09"]
[Round "9"]
[White "Chopper1905"]
[Black "jamalm2"]
[Result "1-0"]
[WhiteElo "2946"]
[BlackElo "1938"]
[TimeControl "180+1"]
[EndTime "11:45:16 PST"]
[Termination "Chopper1905 won on time"]

1. d4 {[%clk 0:03:00.9]} 1... Nf6 {[%clk 0:02:58.1]} 2. c4 {[%clk 0:02:57.6]}
2... e6 {[%clk 0:02:57.8]} 3. Nc3 {[%clk 0:02:56.9]} 3... Bb4 {[%clk 0:02:56.9]}
4. e3 {[%clk 0:02:56.9]} 4... b6 {[%clk 0:02:56.6]} 5. Ne2 {[%clk 0:02:54.9]}
5... Bb7 {[%clk 0:02:55.6]} 6. a3 {[%clk 0:02:53.4]} 6... Be7 {[%clk 0:02:53.7]}
7. d5 {[%clk 0:02:44.7]} 7... d6 {[%clk 0:02:45.2]} 8. Nd4 {[%clk 0:02:37.6]}
8... e5 {[%clk 0:02:42.4]} 9. Nf5 {[%clk 0:02:37.5]} 9... O-O {[%clk 0:02:41.1]}
10. e4 {[%clk 0:02:30.7]} 10... Bc8 {[%clk 0:02:34.3]} 11. Nxe7+ {[%clk
0:02:29.4]} 11... Qxe7 {[%clk 0:02:33.5]} 12. Be2 {[%clk 0:02:28.2]} 12... Nbd7
{[%clk 0:02:30.2]} 13. O-O {[%clk 0:02:25]} 13... Nc5 {[%clk 0:02:23.6]} 14. Qc2
{[%clk 0:02:12.3]} 14... a5 {[%clk 0:02:22.7]} 15. Be3 {[%clk 0:02:10.5]} 15...
h6 {[%clk 0:02:20.3]} 16. b4 {[%clk 0:02:10]} 16... axb4 {[%clk 0:02:19.1]} 17.
axb4 {[%clk 0:02:10.9]} 17... Rxa1 {[%clk 0:02:16.9]} 18. Rxa1 {[%clk
0:02:11.8]} 18... Na6 {[%clk 0:02:15.2]} 19. Qb1 {[%clk 0:02:05]} 19... Qd7
{[%clk 0:02:07.7]} 20. c5 {[%clk 0:02:00.6]} 20... dxc5 {[%clk 0:02:05]} 21.
Bxa6 {[%clk 0:01:59]} 21... Bxa6 {[%clk 0:02:00.1]} 22. Rxa6 {[%clk 0:01:59.9]}
22... cxb4 {[%clk 0:01:59.5]} 23. Qxb4 {[%clk 0:02:00.8]} 23... Ng4 {[%clk
0:01:56.2]} 24. Bd2 {[%clk 0:01:49.5]} 24... f5 {[%clk 0:01:48.2]} 25. f3 {[%clk
0:01:42.5]} 25... Nf6 {[%clk 0:01:22.8]} 26. Qc4 {[%clk 0:01:23.8]} 26... fxe4
{[%clk 0:01:17.5]} 27. fxe4 {[%clk 0:01:20.7]} 27... Ng4 {[%clk 0:01:10]} 28. h3
{[%clk 0:01:11.9]} 28... Qf7 {[%clk 0:01:08.4]} 29. Qe2 {[%clk 0:01:05.4]} 29...
Nf2 {[%clk 0:00:59.8]} 30. Be3 {[%clk 0:00:51.5]} 30... Nxe4 {[%clk 0:00:45.9]}
31. Nxe4 {[%clk 0:00:49.3]} 31... Qxd5 {[%clk 0:00:45.6]} 32. Nd2 {[%clk
0:00:46.1]} 32... e4 {[%clk 0:00:41.5]} 33. Qc4 {[%clk 0:00:42.7]} 33... Qxc4
{[%clk 0:00:38]} 34. Nxc4 {[%clk 0:00:43.6]} 34... Rd8 {[%clk 0:00:35.8]} 35.
Ra7 {[%clk 0:00:43.2]} 35... b5 {[%clk 0:00:33.2]} 36. Ne5 {[%clk 0:00:41.4]}
36... Rd5 {[%clk 0:00:31.2]} 37. Nc6 {[%clk 0:00:36.9]} 37... Rd3 {[%clk
0:00:29.4]} 38. Bd4 {[%clk 0:00:34.2]} 38... e3 {[%clk 0:00:26.9]} 39. Ra8+
{[%clk 0:00:34.1]} 39... Kh7 {[%clk 0:00:24.2]} 40. Re8 {[%clk 0:00:33.2]} 40...
Rd1+ {[%clk 0:00:18]} 41. Kh2 {[%clk 0:00:33]} 41... Rc1 {[%clk 0:00:16.6]} 42.
Re6 {[%clk 0:00:21.1]} 42... e2 {[%clk 0:00:14.5]} 43. Bf2 {[%clk 0:00:14.3]}
43... Rc2 {[%clk 0:00:02.5]} 44. Nd4 {[%clk 0:00:13.6]} 1-0

[Event "*** Titled Tuesday Blitz"]
[Site "Chess.com"]
[Date "2021.02.09"]
[Round "9"]
[White "SanchezKelvin"]
[Black "LEGENYA1998"]
[Result "0-1"]
[WhiteElo "2433"]
[BlackElo "2276"]
[TimeControl "180+1"]
[EndTime "11:45:17 PST"]
[Termination "LEGENYA1998 won by resignation"]

1. e4 {[%clk 0:02:39.5]} 1... c6 {[%clk 0:02:55.5]} 2. d4 {[%clk 0:02:38.2]}
2... d5 {[%clk 0:02:55.5]} 3. e5 {[%clk 0:02:38.5]} 3... Bf5 {[%clk 0:02:55.1]}
4. Nc3 {[%clk 0:02:38.4]} 4... e6 {[%clk 0:02:54.6]} 5. g4 {[%clk 0:02:38.1]}
5... Bg6 {[%clk 0:02:54.7]} 6. Nge2 {[%clk 0:02:37.9]} 6... c5 {[%clk
0:02:54.6]} 7. h4 {[%clk 0:02:37.1]} 7... h6 {[%clk 0:02:52.6]} 8. f4 {[%clk
0:02:32.9]} 8... Nc6 {[%clk 0:02:51.8]} 9. Be3 {[%clk 0:02:30.4]} 9... Qb6
{[%clk 0:02:47.8]} 10. Na4 {[%clk 0:02:04.4]} 10... Qa5+ {[%clk 0:02:47.5]} 11.
c3 {[%clk 0:02:04.4]} 11... cxd4 {[%clk 0:02:47]} 12. Nxd4 {[%clk 0:01:56.9]}
12... Be4 {[%clk 0:02:44.7]} 13. Rh2 {[%clk 0:01:51.6]} 13... Nge7 {[%clk
0:02:38.4]} 14. Bb5 {[%clk 0:01:42.2]} 14... a6 {[%clk 0:02:36.1]} 15. b4 {[%clk
0:01:40.4]} 15... Qc7 {[%clk 0:02:34.5]} 16. Be2 {[%clk 0:01:32]} 16... Nxd4
{[%clk 0:02:32.1]} 17. Bxd4 {[%clk 0:01:31.7]} 17... Nc6 {[%clk 0:02:32.4]} 18.
Nb2 {[%clk 0:01:28.1]} 18... Nxd4 {[%clk 0:02:28.4]} 19. Qxd4 {[%clk 0:01:25.9]}
19... Be7 {[%clk 0:02:27.2]} 20. a3 {[%clk 0:01:24.5]} 20... Bd8 {[%clk
0:02:12.7]} 21. c4 {[%clk 0:01:22.5]} 21... Qb6 {[%clk 0:02:11.8]} 22. c5 {[%clk
0:01:21.7]} 22... Qc7 {[%clk 0:02:11.4]} 23. Rc1 {[%clk 0:01:17.9]} 23... O-O
{[%clk 0:02:08.4]} 24. g5 {[%clk 0:01:17.7]} 24... a5 {[%clk 0:02:02.5]} 25.
gxh6 {[%clk 0:01:14.8]} 25... gxh6 {[%clk 0:02:02.7]} 26. Rc3 {[%clk 0:01:11.9]}
26... axb4 {[%clk 0:01:58.8]} 27. axb4 {[%clk 0:01:10.7]} 27... Kh8 {[%clk
0:01:45.2]} 28. Nd1 {[%clk 0:01:00.9]} 28... f6 {[%clk 0:01:45.4]} 29. Rg3
{[%clk 0:00:52.4]} 29... fxe5 {[%clk 0:01:44.7]} 30. fxe5 {[%clk 0:00:52.4]}
30... Be7 {[%clk 0:01:41.3]} 31. Qe3 {[%clk 0:00:51.8]} 31... Kh7 {[%clk
0:01:39.6]} 32. Qd4 {[%clk 0:00:48.2]} 32... Rg8 {[%clk 0:01:36.7]} 33. Rxg8
{[%clk 0:00:43.2]} 33... Rxg8 {[%clk 0:01:36.6]} 34. Nf2 {[%clk 0:00:42.3]}
34... Bf5 {[%clk 0:01:29.5]} 35. Bd3 {[%clk 0:00:38.1]} 35... Rf8 {[%clk
0:01:28.2]} 36. Bxf5+ {[%clk 0:00:32.8]} 36... Rxf5 {[%clk 0:01:28.2]} 37. Nd3
{[%clk 0:00:32.7]} 37... Bf8 {[%clk 0:01:24.9]} 38. Rg2 {[%clk 0:00:31.8]} 38...
Qf7 {[%clk 0:01:24.2]} 39. Ke2 {[%clk 0:00:31.5]} 39... Bg7 {[%clk 0:01:19.3]}
40. b5 {[%clk 0:00:24.1]} 40... Rf1 {[%clk 0:01:10.4]} 41. Rf2 {[%clk
0:00:21.4]} 41... Rxf2+ {[%clk 0:01:08.2]} 42. Nxf2 {[%clk 0:00:21.4]} 42...
Qh5+ {[%clk 0:01:08.3]} 43. Qg4 {[%clk 0:00:20.5]} 43... Qxe5+ {[%clk
0:01:07.8]} 44. Kf3 {[%clk 0:00:20.2]} 44... Qc3+ {[%clk 0:01:07.1]} 45. Kg2
{[%clk 0:00:20.6]} 45... Qxc5 {[%clk 0:01:07.1]} 46. Qxe6 {[%clk 0:00:20.5]}
46... d4 {[%clk 0:01:00.5]} 47. Ne4 {[%clk 0:00:19.3]} 47... Qe5 {[%clk
0:00:59.2]} 48. Qxe5 {[%clk 0:00:17.8]} 48... Bxe5 {[%clk 0:00:59.2]} 49. h5
{[%clk 0:00:17.9]} 49... Kg7 {[%clk 0:00:58.7]} 50. Nc5 {[%clk 0:00:17.5]} 50...
b6 {[%clk 0:00:54.7]} 51. Na4 {[%clk 0:00:16.6]} 51... Bc7 {[%clk 0:00:53.8]}
52. Kf3 {[%clk 0:00:15.4]} 52... Kf6 {[%clk 0:00:52.5]} 53. Ke4 {[%clk
0:00:13.6]} 53... Kg5 {[%clk 0:00:52.8]} 54. Kxd4 {[%clk 0:00:13.6]} 54... Kxh5
{[%clk 0:00:53.2]} 55. Ke4 {[%clk 0:00:14]} 55... Kg4 {[%clk 0:00:53.5]} 56. Ke3
{[%clk 0:00:14.4]} 56... Kg3 {[%clk 0:00:53.4]} 57. Nc3 {[%clk 0:00:14]} 57...
h5 {[%clk 0:00:53.6]} 58. Ne4+ {[%clk 0:00:14]} 58... Kg2 {[%clk 0:00:53.8]} 59.
Ng5 {[%clk 0:00:09.3]} 59... h4 {[%clk 0:00:49.9]} 60. Ke4 {[%clk 0:00:07.8]}
60... h3 {[%clk 0:00:48.2]} 61. Nxh3 {[%clk 0:00:07.8]} 61... Kxh3 {[%clk
0:00:48.6]} 62. Kd5 {[%clk 0:00:08.1]} 62... Bg3 {[%clk 0:00:47]} 0-1

[Event "*** Titled Tuesday Blitz"]
[Site "Chess.com"]
[Date "2021.02.09"]
[Round "9"]
[White "Bulldog167"]
[Black "Volodar_Murzin"]
[Result "0-1"]
[WhiteElo "2824"]
[BlackElo "2637"]
[TimeControl "180+1"]
[EndTime "11:45:18 PST"]
[Termination "Volodar_Murzin won by resignation"]

1. d4 {[%clk 0:03:00.9]} 1... Nf6 {[%clk 0:02:59.4]} 2. c4 {[%clk 0:03:01.5]}
2... g6 {[%clk 0:02:59.7]} 3. Nc3 {[%clk 0:03:01.8]} 3... Bg7 {[%clk 0:03:00.3]}
4. e4 {[%clk 0:03:02.4]} 4... O-O {[%clk 0:03:01.1]} 5. h3 {[%clk 0:03:03]} 5...
d6 {[%clk 0:03:00.7]} 6. Be3 {[%clk 0:03:03]} 6... c6 {[%clk 0:03:00.5]} 7. Nf3
{[%clk 0:03:01.2]} 7... a5 {[%clk 0:02:57.8]} 8. Be2 {[%clk 0:02:54.8]} 8... Na6
{[%clk 0:02:55.8]} 9. O-O {[%clk 0:02:53.7]} 9... Nd7 {[%clk 0:02:55.9]} 10. Qd2
{[%clk 0:02:51]} 10... e5 {[%clk 0:02:53.4]} 11. Rfd1 {[%clk 0:02:51.1]} 11...
Re8 {[%clk 0:02:53.2]} 12. d5 {[%clk 0:02:32.2]} 12... Bf8 {[%clk 0:02:33.6]}
13. Ne1 {[%clk 0:02:27.3]} 13... Nac5 {[%clk 0:02:30.6]} 14. Nd3 {[%clk
0:02:27.2]} 14... Nxd3 {[%clk 0:02:28.9]} 15. Bxd3 {[%clk 0:02:26.3]} 15... Be7
{[%clk 0:02:15.2]} 16. b3 {[%clk 0:02:23.5]} 16... c5 {[%clk 0:02:09.2]} 17. Nb5
{[%clk 0:02:20.2]} 17... Nf6 {[%clk 0:02:05.9]} 18. a3 {[%clk 0:02:13.7]} 18...
Bd7 {[%clk 0:01:51.2]} 19. Nc3 {[%clk 0:01:36.7]} 19... Nh5 {[%clk 0:01:48.8]}
20. Be2 {[%clk 0:01:26.3]} 20... Nf4 {[%clk 0:01:39.6]} 21. Bxf4 {[%clk
0:01:11]} 21... exf4 {[%clk 0:01:38.6]} 22. Qxf4 {[%clk 0:01:11.9]} 22... Bf6
{[%clk 0:01:36.1]} 23. Rac1 {[%clk 0:01:11.3]} 23... Be5 {[%clk 0:01:32.1]} 24.
Qf3 {[%clk 0:01:04.1]} 24... h5 {[%clk 0:01:25.7]} 25. Bd3 {[%clk 0:01:02.7]}
25... Qg5 {[%clk 0:01:20.9]} 26. Ne2 {[%clk 0:00:59.2]} 26... Bb2 {[%clk
0:01:16]} 27. Rb1 {[%clk 0:00:57.9]} 27... Bxa3 {[%clk 0:01:15.9]} 28. Bc2
{[%clk 0:00:43.3]} 28... Bb4 {[%clk 0:01:11.9]} 29. Nc1 {[%clk 0:00:25.1]} 29...
b5 {[%clk 0:00:42.9]} 30. cxb5 {[%clk 0:00:23.1]} 30... Bxb5 {[%clk 0:00:41.8]}
31. Bd3 {[%clk 0:00:22.3]} 31... Bd7 {[%clk 0:00:36.9]} 32. Na2 {[%clk
0:00:22.4]} 32... Qe5 {[%clk 0:00:33.6]} 33. Nxb4 {[%clk 0:00:21.9]} 33... axb4
{[%clk 0:00:33.1]} 34. Qe3 {[%clk 0:00:20.2]} 34... Ra3 {[%clk 0:00:28.2]} 35.
f4 {[%clk 0:00:12.3]} 35... Qxd5 {[%clk 0:00:24.2]} 36. Bc2 {[%clk 0:00:06]}
36... Qe6 {[%clk 0:00:20.5]} 37. Qd2 {[%clk 0:00:06.1]} 37... Ra2 {[%clk
0:00:17.6]} 38. Ra1 {[%clk 0:00:04.8]} 38... Rxa1 {[%clk 0:00:15.9]} 39. Rxa1
{[%clk 0:00:05.7]} 39... Bc6 {[%clk 0:00:16.3]} 40. Re1 {[%clk 0:00:04.1]} 40...
d5 {[%clk 0:00:14.9]} 41. e5 {[%clk 0:00:04.2]} 41... d4 {[%clk 0:00:14.8]} 42.
Bd3 {[%clk 0:00:02.4]} 42... Qxb3 {[%clk 0:00:13.9]} 43. f5 {[%clk 0:00:02.9]}
43... Qc3 {[%clk 0:00:13.6]} 44. Qd1 {[%clk 0:00:01.4]} 44... c4 {[%clk
0:00:12.5]} 45. fxg6 {[%clk 0:00:01.9]} 45... Qxd3 {[%clk 0:00:11.2]} 46. gxf7+
{[%clk 0:00:02.8]} 46... Kxf7 {[%clk 0:00:11.2]} 47. Qxh5+ {[%clk 0:00:03.4]}
47... Qg6 {[%clk 0:00:11.3]} 48. Qf3+ {[%clk 0:00:02.7]} 48... Bxf3 {[%clk
0:00:10.8]} 0-1

[Event "*** Titled Tuesday Blitz"]
[Site "Chess.com"]
[Date "2021.02.09"]
[Round "9"]
[White "elextranjero00"]
[Black "manmanlai1"]
[Result "1-0"]
[WhiteElo "2603"]
[BlackElo "2477"]
[TimeControl "180+1"]
[EndTime "11:45:18 PST"]
[Termination "elextranjero00 won on time"]

1. d4 {[%clk 0:03:00.9]} 1... Nf6 {[%clk 0:02:56.3]} 2. c4 {[%clk 0:03:00.3]}
2... g6 {[%clk 0:02:52.3]} 3. Nc3 {[%clk 0:02:58.5]} 3... Bg7 {[%clk 0:02:52.6]}
4. e4 {[%clk 0:02:58.1]} 4... d6 {[%clk 0:02:52.9]} 5. h3 {[%clk 0:02:57]} 5...
O-O {[%clk 0:02:47.4]} 6. Be3 {[%clk 0:02:57.1]} 6... Nbd7 {[%clk 0:02:45.4]} 7.
g4 {[%clk 0:02:50]} 7... c5 {[%clk 0:02:44.5]} 8. Nge2 {[%clk 0:02:46.1]} 8...
cxd4 {[%clk 0:02:42.9]} 9. Nxd4 {[%clk 0:02:45.7]} 9... Nc5 {[%clk 0:02:36.9]}
10. Bg2 {[%clk 0:02:45.1]} 10... Ne6 {[%clk 0:02:29]} 11. Nde2 {[%clk
0:02:42.1]} 11... Bd7 {[%clk 0:02:26.7]} 12. Qd2 {[%clk 0:02:34.3]} 12... Rc8
{[%clk 0:02:24.4]} 13. b3 {[%clk 0:02:34]} 13... a6 {[%clk 0:02:23.7]} 14. f4
{[%clk 0:02:25.6]} 14... b5 {[%clk 0:02:17.1]} 15. f5 {[%clk 0:02:12.3]} 15...
Nc5 {[%clk 0:02:09.1]} 16. O-O {[%clk 0:01:54.7]} 16... bxc4 {[%clk 0:02:03.8]}
17. b4 {[%clk 0:01:54.8]} 17... Nd3 {[%clk 0:01:57.5]} 18. Nf4 {[%clk
0:01:47.3]} 18... Nxf4 {[%clk 0:01:46]} 19. Rxf4 {[%clk 0:01:40.3]} 19... Bc6
{[%clk 0:01:28.7]} 20. Rd1 {[%clk 0:01:36.1]} 20... Nd7 {[%clk 0:01:25.6]} 21.
g5 {[%clk 0:01:26.5]} 21... Be5 {[%clk 0:01:17.1]} 22. Rf2 {[%clk 0:01:20.3]}
22... Rb8 {[%clk 0:01:06.5]} 23. a3 {[%clk 0:01:05.2]} 23... e6 {[%clk
0:00:59.7]} 24. Ne2 {[%clk 0:00:52]} 24... exf5 {[%clk 0:00:43.9]} 25. exf5
{[%clk 0:00:51.9]} 25... Bxg2 {[%clk 0:00:43.9]} 26. Rxg2 {[%clk 0:00:52]} 26...
Re8 {[%clk 0:00:36.3]} 27. Bd4 {[%clk 0:00:47.2]} 27... Qc7 {[%clk 0:00:30.1]}
28. Nc3 {[%clk 0:00:45.8]} 28... Nb6 {[%clk 0:00:21.1]} 29. Kh1 {[%clk
0:00:32.9]} 29... Rbd8 {[%clk 0:00:16.1]} 30. Bxb6 {[%clk 0:00:28.5]} 30... Qxb6
{[%clk 0:00:17]} 31. Nd5 {[%clk 0:00:28.8]} 31... Qc6 {[%clk 0:00:15.4]} 32. f6
{[%clk 0:00:24.5]} 32... c3 {[%clk 0:00:12]} 33. Qd3 {[%clk 0:00:24.7]} 33...
Rc8 {[%clk 0:00:11.9]} 34. Rc2 {[%clk 0:00:24.5]} 34... Kh8 {[%clk 0:00:11.2]}
35. Kg1 {[%clk 0:00:21.1]} 35... Qb7 {[%clk 0:00:11]} 36. h4 {[%clk 0:00:19.8]}
36... a5 {[%clk 0:00:09.8]} 37. Rf1 {[%clk 0:00:16.8]} 37... axb4 {[%clk
0:00:09.6]} 38. axb4 {[%clk 0:00:17.7]} 38... Ra8 {[%clk 0:00:08.9]} 39. Qf3
{[%clk 0:00:15.7]} 39... Ra3 {[%clk 0:00:07.6]} 40. Kg2 {[%clk 0:00:15.2]} 40...
Rea8 {[%clk 0:00:07.9]} 41. Rd1 {[%clk 0:00:14.4]} 41... Ra2 {[%clk 0:00:02.8]}
42. Rc1 {[%clk 0:00:14.6]} 42... Qb5 {[%clk 0:00:01.8]} 43. Ne3 {[%clk
0:00:10.8]} 1-0